[Event "NJSK 2026 Jeugd C"]
[Site "Helmond, Netherlands"]
[Date "2026.04.27"]
[Round "3.17"]
[White "Cubuk, Armin"]
[Black "De Wit, Jim"]
[Result "1/2-1/2"]
[TimeControl "90min/40moves + 30sec/move"]
[WhiteTitle "-"]
[BlackTitle "-"]
[WhiteFideId "40105423"]
[BlackFideId "1097326"]
[WhiteElo "1881"]
[BlackElo "1749"]

1. e4 {[%clk 01:30:57]} {[%emt 00:00:02]} c5 {[%clk 01:30:56]} {[%emt
00:00:05]} 2. Nf3 {[%clk 01:31:19]} {[%emt 00:00:08]} a6 {[%clk 01:31:21]}
{[%emt 00:00:06]} 3. c3 {[%clk 01:31:45]} {[%emt 00:00:03]} d5 {[%clk
01:31:47]} {[%emt 00:00:05]} 4. exd5 {[%clk 01:32:09]} {[%emt 00:00:06]} Qxd5
{[%clk 01:32:08]} {[%emt 00:00:08]} 5. d4 {[%clk 01:32:32]} {[%emt 00:00:06]}
e6 {[%clk 01:32:12]} {[%emt 00:00:26]} 6. Be3 {[%clk 01:32:48]} {[%emt
00:00:15]} cxd4 {[%clk 01:28:43]} {[%emt 00:04:00]} 7. cxd4 {[%clk 01:33:08]}
{[%emt 00:00:09]} Nf6 {[%clk 01:27:58]} {[%emt 00:01:15]} 8. Nc3 {[%clk
01:33:28]} {[%emt 00:00:10]} Qd8 {[%clk 01:25:08]} {[%emt 00:03:20]} 9. Bd3
{[%clk 01:33:08]} {[%emt 00:00:50]} Nc6 {[%clk 01:23:32]} {[%emt 00:02:07]} 10.
a3 {[%clk 01:32:50]} {[%emt 00:00:47]} b5 {[%clk 01:21:27]} {[%emt 00:02:35]}
11. O-O {[%clk 01:31:46]} {[%emt 00:01:33]} Bb7 {[%clk 01:19:56]} {[%emt
00:02:01]} 12. Re1 {[%clk 01:29:33]} {[%emt 00:02:43]} h6 {[%clk 01:18:32]}
{[%emt 00:01:55]} 13. Qe2 {[%clk 01:26:33]} {[%emt 00:03:29]} Be7 {[%clk
01:17:12]} {[%emt 00:01:50]} 14. Rad1 {[%clk 01:25:48]} {[%emt 00:01:15]} b4
{[%clk 01:12:09]} {[%emt 00:05:34]} 15. Ne4 {[%clk 01:15:36]} {[%emt 00:10:40]}
Nd5 {[%clk 01:11:21]} {[%emt 00:01:20]} 16. Ne5 {[%clk 01:03:48]} {[%emt
00:12:18]} Nxe5 {[%clk 01:01:59]} {[%emt 00:09:52]} 17. dxe5 {[%clk 01:04:03]}
{[%emt 00:00:14]} bxa3 {[%clk 00:59:57]} {[%emt 00:02:33]} 18. Qg4 {[%clk
00:54:05]} {[%emt 00:10:27]} g6 {[%clk 00:58:51]} {[%emt 00:01:36]} 19. Bc5
{[%clk 00:52:06]} {[%emt 00:02:29]} Bxc5 {[%clk 00:54:01]} {[%emt 00:05:21]} 20.
Nxc5 {[%clk 00:52:32]} {[%emt 00:00:04]} Qe7 {[%clk 00:51:55]} {[%emt
00:02:35]} 21. Nxb7 {[%clk 00:39:53]} {[%emt 00:13:09]} Qxb7 {[%clk 00:52:10]}
{[%emt 00:00:15]} 22. bxa3 {[%clk 00:38:33]} {[%emt 00:01:51]} h5 {[%clk
00:51:42]} {[%emt 00:00:57]} 23. Qg5 {[%clk 00:37:42]} {[%emt 00:01:20]} Qe7
{[%clk 00:50:16]} {[%emt 00:01:58]} 24. Qc1 {[%clk 00:37:41]} {[%emt 00:00:30]}
O-O {[%clk 00:48:15]} {[%emt 00:02:31]} 25. Qh6 {[%clk 00:36:29]} {[%emt
00:01:41]} Rfe8 {[%clk 00:48:06]} {[%emt 00:00:41]} 26. Be4 {[%clk 00:25:07]}
{[%emt 00:11:49]} Rad8 {[%clk 00:41:43]} {[%emt 00:06:55]} 27. Rd3 {[%clk
00:22:15]} {[%emt 00:03:21]} Qf8 {[%clk 00:40:30]} {[%emt 00:01:44]} 28. Qg5
{[%clk 00:21:09]} {[%emt 00:01:34]} Qe7 {[%clk 00:38:52]} {[%emt 00:02:09]} 29.
Qh6 {[%clk 00:20:02]} {[%emt 00:01:34]} Qf8 {[%clk 00:39:09]} {[%emt 00:00:17]}
30. Qxf8+ {[%clk 00:20:26]} {[%emt 00:00:06]} Kxf8 {[%clk 00:39:13]} {[%emt
00:00:27]} 31. Red1 {[%clk 00:20:44]} {[%emt 00:00:12]} Rb8 {[%clk 00:33:34]}
{[%emt 00:06:09]} 32. Bxd5 {[%clk 00:20:58]} {[%emt 00:00:15]} exd5 {[%clk
00:33:51]} {[%emt 00:00:13]} 33. Rxd5 {[%clk 00:21:16]} {[%emt 00:00:12]} Rb5
{[%clk 00:33:56]} {[%emt 00:00:25]} 34. Rxb5 {[%clk 00:21:28]} {[%emt
00:00:18]} axb5 {[%clk 00:34:25]} {[%emt 00:00:02]} 35. Rd5 {[%clk 00:20:24]}
{[%emt 00:01:31]} Ra8 {[%clk 00:34:21]} {[%emt 00:00:35]} 36. Rd3 {[%clk
00:19:22]} {[%emt 00:01:32]} b4 {[%clk 00:34:37]} {[%emt 00:00:15]} 37. a4
{[%clk 00:13:26]} {[%emt 00:06:27]} Rxa4 {[%clk 00:34:07]} {[%emt 00:00:59]} 38.
Kf1 {[%clk 00:13:40]} {[%emt 00:00:14]} Ra1+ {[%clk 00:28:23]} {[%emt
00:06:16]} 39. Ke2 {[%clk 00:14:06]} {[%emt 00:00:04]} Ra2+ {[%clk 00:28:13]}
{[%emt 00:00:39]} 40. Ke3 {[%clk 00:10:00]} {[%emt 00:04:37]} Rb2 {[%clk
00:27:51]} {[%emt 00:00:52]} 41. Rd8+ {[%clk 00:06:53]} {[%emt 00:03:38]} Ke7
{[%clk 00:26:24]} {[%emt 00:01:57]} 42. Rb8 {[%clk 00:07:18]} {[%emt 00:00:05]}
b3 {[%clk 00:26:09]} {[%emt 00:00:44]} 43. g3 {[%clk 00:06:42]} {[%emt
00:01:04]} Rb1 {[%emt 00:06:08]} 44. f4 b2 {[%emt 00:00:03]} 45. Kd2 {[%emt
00:00:01]} Rh1 {[%emt 00:00:03]} 1/2-1/2

[Event "NJSK 2026 Jeugd C"]
[Site "Helmond, Netherlands"]
[Date "2026.04.27"]
[Round "4.1"]
[White "Guillaumond, Matthieu"]
[Black "Pathak, Raghav"]
[Result "1-0"]
[TimeControl "90min/40moves + 30sec/move"]
[WhiteTitle "-"]
[BlackTitle "-"]
[WhiteFideId "1097091"]
[BlackFideId "1084259"]
[WhiteElo "2104"]
[BlackElo "2091"]

1. e4 {[%clk 01:28:52]} {[%emt 00:02:08]} c6 {[%clk 01:30:27]} {[%emt
00:00:33]} 2. Nc3 {[%clk 01:29:15]} {[%emt 00:00:07]} d5 {[%clk 01:30:55]}
{[%emt 00:00:03]} 3. Nf3 {[%clk 01:29:39]} {[%emt 00:00:05]} dxe4 {[%clk
01:31:21]} {[%emt 00:00:04]} 4. Nxe4 {[%clk 01:30:04]} {[%emt 00:00:06]} Nf6
{[%clk 01:31:45]} {[%emt 00:00:06]} 5. Qe2 {[%clk 01:30:25]} {[%emt 00:00:08]}
Nxe4 {[%clk 01:31:59]} {[%emt 00:00:16]} 6. Qxe4 {[%clk 01:30:54]} {[%emt
00:00:02]} Qa5 {[%clk 01:32:12]} {[%emt 00:00:16]} 7. b4 {[%clk 01:31:16]}
{[%emt 00:00:08]} Qf5 {[%clk 01:32:21]} {[%emt 00:00:21]} 8. Qe3 {[%clk
01:29:25]} {[%emt 00:02:22]} Qe6 {[%clk 01:31:23]} {[%emt 00:01:27]} 9. Bb2
{[%clk 01:27:45]} {[%emt 00:02:10]} Qxe3+ {[%clk 01:30:44]} {[%emt 00:01:09]}
10. fxe3 {[%clk 01:28:13]} {[%emt 00:00:01]} Bf5 {[%clk 01:28:00]} {[%emt
00:03:15]} 11. Nd4 {[%clk 01:22:50]} {[%emt 00:05:53]} Bg6 {[%clk 01:28:16]}
{[%emt 00:00:14]} 12. Bc4 {[%clk 01:20:56]} {[%emt 00:02:25]} e5 {[%clk
01:27:55]} {[%emt 00:00:53]} 13. Nf3 {[%clk 01:21:11]} {[%emt 00:00:12]} f6
{[%clk 01:27:20]} {[%emt 00:01:06]} 14. c3 {[%clk 01:19:18]} {[%emt 00:02:34]}
Nd7 {[%clk 01:27:14]} {[%emt 00:00:24]} 15. b5 {[%clk 01:09:29]} {[%emt
00:10:20]} Nb6 {[%clk 01:22:17]} {[%emt 00:05:26]} 16. Be2 {[%clk 01:09:41]}
{[%emt 00:00:17]} Na4 {[%clk 01:21:14]} {[%emt 00:01:34]} 17. O-O-O {[%clk
01:08:25]} {[%emt 00:01:47]} a6 {[%clk 01:19:39]} {[%emt 00:02:04]} 18. bxc6
{[%clk 01:01:57]} {[%emt 00:06:58]} bxc6 {[%clk 01:20:01]} {[%emt 00:00:08]} 19.
Nh4 {[%clk 01:02:23]} {[%emt 00:00:05]} Bf7 {[%clk 01:15:24]} {[%emt 00:05:06]}
20. c4 {[%clk 01:02:33]} {[%emt 00:00:20]} Nxb2 {[%clk 01:08:45]} {[%emt
00:07:09]} 21. Kxb2 {[%clk 01:02:55]} {[%emt 00:00:08]} g6 {[%clk 01:08:20]}
{[%emt 00:00:55]} 22. Kc2 {[%clk 00:55:38]} {[%emt 00:07:47]} e4 {[%clk
01:08:06]} {[%emt 00:00:44]} 23. Rb1 {[%clk 00:53:51]} {[%emt 00:02:17]} f5
{[%clk 01:06:19]} {[%emt 00:02:18]} 24. Rb7 {[%clk 00:47:25]} {[%emt 00:06:55]}
Bg7 {[%clk 01:06:26]} {[%emt 00:00:23]} 25. Rhb1 {[%clk 00:43:40]} {[%emt
00:04:15]} O-O {[%clk 01:06:31]} {[%emt 00:00:25]} 26. R1b6 {[%clk 00:44:02]}
{[%emt 00:00:08]} Rfc8 {[%clk 01:05:07]} {[%emt 00:01:54]} 27. g4 {[%clk
00:43:01]} {[%emt 00:01:32]} Bf6 {[%clk 01:04:12]} {[%emt 00:01:25]} 28. Ng2
{[%clk 00:43:24]} {[%emt 00:00:07]} Be5 {[%clk 01:04:00]} {[%emt 00:00:42]} 29.
gxf5 {[%clk 00:41:34]} {[%emt 00:02:20]} gxf5 {[%clk 01:04:07]} {[%emt
00:00:23]} 30. Nh4 {[%clk 00:39:00]} {[%emt 00:03:03]} Be6 {[%clk 00:56:01]}
{[%emt 00:08:36]} 31. Re7 {[%clk 00:38:25]} {[%emt 00:01:06]} Re8 {[%clk
00:56:26]} {[%emt 00:00:05]} 32. Rxe8+ {[%clk 00:38:49]} {[%emt 00:00:05]} Rxe8
{[%clk 00:56:52]} {[%emt 00:00:04]} 33. Rxc6 {[%clk 00:39:13]} {[%emt
00:00:06]} Bxh2 {[%clk 00:55:38]} {[%emt 00:01:44]} 34. c5 {[%clk 00:39:17]}
{[%emt 00:00:27]} Bd7 {[%clk 00:54:15]} {[%emt 00:01:52]} 35. Bc4+ {[%clk
00:36:58]} {[%emt 00:02:49]} Kh8 {[%clk 00:54:16]} {[%emt 00:00:29]} 36. Rxa6
{[%clk 00:36:40]} {[%emt 00:00:49]} Rc8 {[%clk 00:54:37]} {[%emt 00:00:09]} 37.
Ra5 {[%clk 00:32:26]} {[%emt 00:04:44]} Bg3 {[%clk 00:54:37]} {[%emt 00:00:29]}
38. Ng2 {[%clk 00:31:29]} {[%emt 00:01:27]} Be5 {[%clk 00:39:22]} {[%emt
00:15:45]} 39. Nf4 {[%clk 00:30:16]} {[%emt 00:01:43]} Bc7 {[%clk 00:38:02]}
{[%emt 00:01:49]} 40. Ra7 {[%clk 00:27:56]} {[%emt 00:02:51]} Bxf4 {[%clk
00:38:13]} {[%emt 00:00:20]} 41. Rxd7 {[%clk 00:26:36]} {[%emt 00:01:50]} Rxc5
{[%clk 00:38:39]} {[%emt 00:00:04]} 42. Kb3 {[%clk 00:26:57]} {[%emt 00:00:09]}
Bg5 {[%clk 00:31:48]} {[%emt 00:07:21]} 43. Rf7 {[%clk 00:24:19]} {[%emt
00:03:07]} Re5 {[%clk 00:32:00]} {[%emt 00:00:19]} 44. Kc3 {[%clk 00:23:26]}
{[%emt 00:01:23]} Bh6 {[%clk 00:28:25]} {[%emt 00:04:04]} 45. Kd4 {[%clk
00:23:45]} {[%emt 00:00:12]} Ra5 {[%clk 00:28:44]} {[%emt 00:00:10]} 46. Be6
{[%clk 00:18:32]} {[%emt 00:05:43]} Bg7+ {[%clk 00:29:05]} {[%emt 00:00:10]} 47.
Kc4 {[%clk 00:18:58]} {[%emt 00:00:03]} Rxa2 {[%clk 00:29:22]} {[%emt
00:00:14]} 48. Rd7 {[%clk 00:18:20]} {[%emt 00:01:07]} Rc2+ {[%clk 00:28:41]}
{[%emt 00:01:11]} 49. Kb3 {[%clk 00:18:16]} {[%emt 00:00:34]} Rb2+ {[%clk
00:28:48]} {[%emt 00:00:23]} 50. Ka4 {[%clk 00:18:34]} {[%emt 00:00:12]} Rb8
{[%clk 00:29:09]} {[%emt 00:00:10]} 51. Bxf5 {[%clk 00:18:52]} {[%emt
00:00:12]} Re8 {[%clk 00:29:24]} {[%emt 00:00:14]} 52. Kb4 {[%clk 00:18:11]}
{[%emt 00:01:11]} Kg8 {[%clk 00:28:49]} {[%emt 00:01:06]} 53. Kb3 {[%clk
00:18:03]} {[%emt 00:00:37]} Re5 {[%clk 00:26:29]} {[%emt 00:02:50]} 54. Rd5
{[%clk 00:18:00]} {[%emt 00:00:32]} Re8 {[%clk 00:25:41]} {[%emt 00:01:18]} 55.
Rc5 {[%clk 00:17:45]} {[%emt 00:00:46]} Rb8+ {[%clk 00:22:24]} {[%emt
00:03:48]} 56. Kc2 {[%clk 00:17:29]} {[%emt 00:00:46]} Rb2+ {[%clk 00:21:41]}
{[%emt 00:01:13]} 57. Kd1 {[%emt 00:06:40]} Rb8 {[%clk 00:15:54]} 58. Bxe4
{[%clk 00:17:38]} {[%emt 00:00:28]} Rd8 {[%clk 00:15:15]} {[%emt 00:01:09]} 59.
Ke2 {[%clk 00:17:55]} {[%emt 00:00:13]} Kh8 {[%clk 00:15:17]} {[%emt 00:00:28]}
60. Rc4 {[%clk 00:17:20]} {[%emt 00:01:05]} Re8 {[%clk 00:14:53]} {[%emt
00:00:54]} 61. Bc2 {[%clk 00:16:33]} {[%emt 00:01:17]} Bf6 {[%clk 00:14:54]}
{[%emt 00:00:29]} 62. d4 {[%clk 00:16:38]} {[%emt 00:00:25]} Rd8 {[%clk
00:14:36]} {[%emt 00:00:48]} 63. Bf5 {[%clk 00:16:22]} {[%emt 00:00:45]} h5
{[%clk 00:14:49]} {[%emt 00:00:17]} 64. Kd3 {[%clk 00:15:59]} {[%emt 00:00:53]}
h4 {[%clk 00:15:04]} {[%emt 00:00:16]} 65. e4 {[%clk 00:16:13]} {[%emt
00:00:15]} Kg7 {[%clk 00:14:58]} {[%emt 00:00:36]} 66. Ke3 {[%clk 00:15:56]}
{[%emt 00:00:48]} Ra8 {[%clk 00:14:16]} {[%emt 00:01:12]} 67. Rc7+ {[%clk
00:13:35]} {[%emt 00:02:50]} Kf8 {[%clk 00:13:19]} {[%emt 00:01:27]} 68. e5
{[%clk 00:12:39]} {[%emt 00:01:26]} Be7 {[%clk 00:13:08]} {[%emt 00:00:42]} 69.
Ke4 {[%clk 00:11:22]} {[%emt 00:01:47]} Ra3 {[%clk 00:12:32]} {[%emt 00:01:05]}
70. Rc6 {[%clk 00:11:43]} {[%emt 00:00:09]} Ra1 {[%clk 00:09:47]} {[%emt
00:03:15]} 71. Rh6 {[%clk 00:11:36]} {[%emt 00:00:37]} Ra4 {[%clk 00:09:03]}
{[%emt 00:01:14]} 72. Rh8+ {[%clk 00:07:48]} {[%emt 00:04:19]} Kg7 {[%clk
00:09:17]} {[%emt 00:00:15]} 73. Rh7+ {[%clk 00:08:13]} {[%emt 00:00:05]} Kf8
{[%clk 00:09:36]} {[%emt 00:00:12]} 74. Bd7 {[%clk 00:06:53]} {[%emt 00:01:49]}
Ra1 {[%clk 00:09:18]} {[%emt 00:00:48]} 75. Kf5 {[%clk 00:06:49]} {[%emt
00:00:34]} Rg1 {[%clk 00:07:59]} {[%emt 00:01:50]} 76. d5 {[%clk 00:05:31]}
{[%emt 00:01:48]} Rg5+ {[%clk 00:05:22]} {[%emt 00:03:06]} 77. Kf4 {[%clk
00:06:00]} {[%emt 00:00:02]} Rg7 {[%clk 00:04:23]} {[%emt 00:01:29]} 78. Rh8+
{[%clk 00:04:33]} {[%emt 00:01:57]} Rg8 {[%clk 00:04:43]} {[%emt 00:00:10]} 79.
Rxg8+ {[%clk 00:02:27]} {[%emt 00:02:35]} Kxg8 {[%clk 00:05:08]} {[%emt
00:00:05]} 80. d6 {[%clk 00:02:53]} {[%emt 00:00:05]} Bd8 {[%clk 00:05:01]}
{[%emt 00:00:37]} 81. Bh3 {[%clk 00:02:24]} {[%emt 00:00:59]} Kf7 {[%clk
00:04:59]} {[%emt 00:00:32]} 82. Kf5 {[%clk 00:02:53]} Kf8 {[%clk 00:04:47]}
{[%emt 00:00:42]} 83. Ke6 {[%clk 00:01:57]} {[%emt 00:01:25]} Ke8 {[%clk
00:04:42]} {[%emt 00:00:36]} 84. Kd5 {[%clk 00:02:19]} {[%emt 00:00:08]} Bg5
{[%clk 00:04:56]} {[%emt 00:00:16]} 85. Kc6 {[%clk 00:02:21]} {[%emt 00:00:27]}
Kd8 {[%clk 00:04:58]} {[%emt 00:00:28]} 86. e6 {[%clk 00:01:00]} {[%emt
00:01:51]} Bf6 {[%clk 00:05:08]} {[%emt 00:00:21]} 87. Kd5 {[%clk 00:01:22]}
{[%emt 00:00:08]} Bg5 {[%clk 00:04:51]} {[%emt 00:00:47]} 88. Ke5 {[%clk
00:01:50]} {[%emt 00:00:02]} Ke8 {[%clk 00:05:16]} {[%emt 00:00:04]} 89. Kf5
{[%clk 00:00:48]} {[%emt 00:01:33]} Bd8 {[%clk 00:05:34]} {[%emt 00:00:12]} 90.
Kg6 {[%clk 00:01:05]} {[%emt 00:00:13]} Kf8 {[%clk 00:05:46]} {[%emt 00:00:18]}
91. Bg2 {[%clk 00:00:57]} {[%emt 00:00:37]} Ke8 {[%clk 00:06:06]} {[%emt
00:00:10]} 92. Kg7 {[%clk 00:01:01]} {[%emt 00:00:26]} Bg5 {[%clk 00:04:55]}
{[%emt 00:01:42]} 93. Bc6+ {[%clk 00:01:04]} {[%emt 00:00:27]} Kd8 {[%clk
00:05:20]} {[%emt 00:00:04]} 94. Kf7 {[%clk 00:01:30]} {[%emt 00:00:04]} h3
{[%clk 00:05:41]} {[%emt 00:00:09]} 95. e7+ {[%clk 00:01:54]} {[%emt 00:00:06]}
Bxe7 {[%clk 00:05:58]} {[%emt 00:00:14]} 96. dxe7+ {[%clk 00:02:20]} {[%emt
00:00:04]} Kc7 {[%clk 00:06:26]} {[%emt 00:00:01]} 97. e8=Q {[%clk 00:02:38]}
{[%emt 00:00:12]} h2 {[%clk 00:06:49]} {[%emt 00:00:07]} 98. Qe5+ {[%clk
00:02:18]} {[%emt 00:00:50]} Kxc6 {[%clk 00:07:06]} {[%emt 00:00:13]} 99. Qxh2
{[%clk 00:02:46]} {[%emt 00:00:03]} Kd5 {[%clk 00:07:33]} {[%emt 00:00:03]} 100.
Qf4 {[%clk 00:03:06]} {[%emt 00:00:10]} Kc5 {[%clk 00:07:52]} {[%emt 00:00:11]}
101. Ke6 {[%clk 00:03:32]} {[%emt 00:00:04]} 1-0

[Event "NJSK 2026 Jeugd C"]
[Site "Helmond, Netherlands"]
[Date "2026.04.27"]
[Round "4.2"]
[White "Koppenens, Oscar"]
[Black "Thijssen, Freek"]
[Result "1/2-1/2"]
[TimeControl "90min/40moves + 30sec/move"]
[WhiteTitle "-"]
[BlackTitle "-"]
[WhiteFideId "1087940"]
[BlackFideId "1091840"]
[WhiteElo "2036"]
[BlackElo "2159"]

1. e4 {[%clk 01:29:15]} {[%emt 00:01:44]} c5 {[%clk 01:30:36]} {[%emt
00:00:24]} 2. Nf3 {[%clk 01:29:40]} {[%emt 00:00:05]} Nc6 {[%clk 01:30:22]}
{[%emt 00:00:44]} 3. Nc3 {[%clk 01:29:58]} {[%emt 00:00:11]} g6 {[%clk
01:26:05]} {[%emt 00:04:47]} 4. d4 {[%clk 01:30:23]} {[%emt 00:00:06]} cxd4
{[%clk 01:26:27]} {[%emt 00:00:07]} 5. Nxd4 {[%clk 01:30:48]} {[%emt 00:00:06]}
Bg7 {[%clk 01:25:05]} {[%emt 00:01:52]} 6. Be3 {[%clk 01:31:11]} {[%emt
00:00:07]} Nf6 {[%clk 01:24:06]} {[%emt 00:01:28]} 7. Nxc6 {[%clk 01:31:36]}
{[%emt 00:00:06]} dxc6 {[%clk 01:13:04]} {[%emt 00:11:33]} 8. Qxd8+ {[%clk
01:29:33]} {[%emt 00:02:32]} Kxd8 {[%clk 01:13:27]} {[%emt 00:00:07]} 9. O-O-O+
{[%clk 01:29:55]} {[%emt 00:00:07]} Ke8 {[%clk 01:13:02]} {[%emt 00:00:55]} 10.
f3 {[%clk 01:26:18]} {[%emt 00:04:07]} Be6 {[%clk 01:06:34]} {[%emt 00:06:59]}
11. a4 {[%clk 01:23:48]} {[%emt 00:03:00]} Nd7 {[%clk 01:01:32]} {[%emt
00:05:31]} 12. Ne2 {[%clk 01:23:51]} {[%emt 00:00:27]} Bc4 {[%clk 00:59:39]}
{[%emt 00:02:24]} 13. b3 {[%clk 01:23:26]} {[%emt 00:00:55]} Ba6 {[%clk
00:56:21]} {[%emt 00:03:47]} 14. Rd2 {[%clk 01:19:21]} {[%emt 00:04:34]} e6
{[%clk 00:54:38]} {[%emt 00:02:14]} 15. Nf4 {[%clk 01:18:39]} {[%emt 00:01:13]}
Bxf1 {[%clk 00:53:22]} {[%emt 00:01:46]} 16. Rxf1 {[%clk 01:19:03]} {[%emt
00:00:05]} Ke7 {[%clk 00:41:20]} {[%emt 00:12:32]} 17. Rfd1 {[%clk 01:17:20]}
{[%emt 00:02:13]} Rhd8 {[%clk 00:41:28]} {[%emt 00:00:22]} 18. c4 {[%clk
01:17:25]} {[%emt 00:00:26]} c5 {[%clk 00:36:31]} {[%emt 00:05:27]} 19. Ne2
{[%clk 01:15:03]} {[%emt 00:02:51]} h6 {[%clk 00:24:26]} {[%emt 00:12:36]} 20.
Bf4 {[%clk 01:12:59]} {[%emt 00:02:32]} Ne5 {[%clk 00:24:26]} {[%emt 00:00:31]}
21. Kc2 {[%clk 01:02:30]} {[%emt 00:11:00]} 1/2-1/2